bitfinex-derivatives/quotes_SOLF0:USTF0_20260314
["timestamp","ask_amount","ask_price","bid_price","bid_amount"]
[1773518258381,9.29466799,86.935,86.896,4.6887146]
[1773518258581,10.35,86.943,86.896,4.6887146]
[1773518258880,9.2951918,86.942,86.896,4.6887146]
[1773518259082,9.2951918,86.941,86.896,4.6887146]
[1773518259380,9.2951918,86.94,86.896,4.6887146]
[1773518259574,9.2951918,86.939,86.896,4.6887146]
[1773518259780,9.2951918,86.938,86.896,4.6887146]
[1773518259982,9.2951918,86.937,86.896,4.6887146]
[1773518260183,9.2951918,86.936,86.896,4.6887146]
[1773518260382,9.2951918,86.935,86.896,4.6887146]
[1773518260582,9.2951918,86.934,86.896,4.6887146]
[1773518260785,3.12599742,86.94,86.896,4.6887146]
[1773518260986,9.29598005,86.939,86.896,4.6887146]
[1773518261287,9.29598005,86.938,86.896,4.6887146]
[1773518261583,9.29598005,86.937,86.896,4.6887146]
[1773518261783,9.29598005,86.936,86.896,4.6887146]
[1773518261984,9.29598005,86.935,86.896,4.6887146]
[1773518262285,9.29598005,86.934,86.896,4.6887146]
[1773518262488,10.35,86.943,86.896,4.6887146]
[1773518262685,10.35,86.941,86.896,4.6887146]
[1773518262885,9.29624854,86.94,86.896,4.6887146]
[1773518263185,9.29624854,86.939,86.896,4.6887146]
[1773518263382,9.29624854,86.938,86.896,4.6887146]
[1773518263577,9.29624854,86.937,86.896,4.6887146]
[1773518263782,9.29624854,86.936,86.896,4.6887146]
[1773518263985,9.29624854,86.935,86.896,4.6887146]
[1773518264187,47.24,86.958,86.896,4.6887146]
[1773518264387,18.54621421,86.957,86.896,4.6887146]
[1773518264587,18.54621421,86.956,86.896,4.6887146]
[1773518264779,10.349,86.949,86.898,4.52010321]
[1773518264983,18.54621421,86.948,86.898,4.52010321]
[1773518265183,18.54621421,86.947,86.898,4.52010321]
[1773518265383,9.29623052,86.946,86.898,4.52010321]
[1773518265683,9.29623052,86.945,86.898,4.52010321]
[1773518265884,9.29623052,86.944,86.898,4.52010321]
[1773518266083,9.29623052,86.943,86.898,4.52010321]
[1773518266288,9.29623052,86.942,86.898,4.52010321]
[1773518266580,9.29623052,86.941,86.898,4.52010321]
[1773518266786,9.29623052,86.94,86.898,4.52010321]
[1773518266983,9.29623052,86.939,86.898,4.52010321]
[1773518267177,9.29623052,86.938,86.898,4.52010321]
[1773518267382,9.29623052,86.937,86.898,4.52010321]
[1773518267578,9.29623052,86.936,86.898,4.52010321]
[1773518267781,3.12599742,86.94,86.898,4.52010321]
[1773518267979,9.29620949,86.939,86.898,4.52010321]
[1773518268184,9.29620949,86.938,86.898,4.52010321]
[1773518268480,9.29620949,86.937,86.898,4.52010321]
[1773518268681,9.29620949,86.936,86.898,4.52010321]
[1773518268880,3.12599742,86.94,86.898,4.52010321]
[1773518269085,9.29615226,86.939,86.898,4.52010321]
[1773518269292,9.29615226,86.938,86.898,4.52010321]
[1773518269492,3.12599742,86.94,86.898,4.52010321]
[1773518269692,9.29609936,86.939,86.898,4.52010321]
[1773518269892,9.29609936,86.938,86.898,4.52010321]
[1773518270094,3.12599742,86.94,86.898,4.52010321]
[1773518270293,9.29605009,86.939,86.898,4.52010321]
[1773518270592,9.29605009,86.938,86.898,4.52010321]
[1773518270792,3.12599742,86.94,86.898,4.52010321]
[1773518270993,9.29605009,86.939,86.898,4.52010321]
[1773518271197,9.29605009,86.938,86.898,4.52010321]
[1773518271397,3.12599742,86.94,86.898,4.52010321]
[1773518271692,9.29600432,86.939,86.898,4.52010321]
[1773518271895,9.29600432,86.938,86.898,4.52010321]
[1773518272097,3.12599742,86.94,86.898,4.52010321]
[1773518272296,9.29596343,86.939,86.898,4.52010321]
[1773518272496,9.29596343,86.938,86.898,4.52010321]
[1773518272792,3.12599742,86.94,86.898,4.52010321]
[1773518272991,9.29596404,86.939,86.898,4.52010321]
[1773518273191,9.29596404,86.938,86.898,4.52010321]
[1773518273392,3.12599742,86.94,86.898,4.52010321]
[1773518273591,9.29593169,86.939,86.898,4.52010321]
[1773518273796,9.29593169,86.938,86.898,4.52010321]
[1773518274000,3.12599742,86.94,86.898,4.52010321]
[1773518274294,9.29593169,86.939,86.898,4.52010321]
[1773518274498,3.12599742,86.94,86.898,4.52010321]
[1773518274699,9.27805737,86.939,86.898,4.52010321]
[1773518274900,9.27805737,86.938,86.898,4.52010321]
[1773518275100,3.12599742,86.94,86.898,4.52010321]
[1773518275301,9.27802704,86.939,86.898,4.52010321]
[1773518275501,9.27802704,86.938,86.898,4.52010321]
[1773518275800,3.12599742,86.94,86.898,4.52010321]
[1773518276000,9.27802704,86.939,86.898,4.52010321]
[1773518276196,9.27802704,86.938,86.898,4.52010321]
[1773518276402,3.12599742,86.94,86.898,4.52010321]
[1773518276602,9.277999,86.939,86.898,4.52010321]
[1773518276901,9.277999,86.938,86.898,4.52010321]
[1773518277102,3.12599742,86.94,86.898,4.52010321]
[1773518277301,9.27797336,86.939,86.898,4.52010321]
[1773518277600,3.12599742,86.94,86.898,4.52010321]
[1773518277800,9.27797336,86.939,86.898,4.52010321]
[1773518278101,9.27797449,86.938,86.898,4.52010321]
[1773518278302,10.349,86.949,86.898,4.52010321]
[1773518278600,10.349,86.944,86.898,4.52010321]
[1773518278799,9.27795247,86.943,86.898,4.52010321]
[1773518279001,9.27795247,86.942,86.898,4.52010321]
[1773518279201,9.27795247,86.941,86.898,4.52010321]
[1773518279500,9.27795247,86.94,86.898,4.52010321]
[1773518279696,9.27795247,86.939,86.898,4.52010321]
[1773518279893,9.27795247,86.938,86.898,4.52010321]
[1773518280098,9.27795247,86.937,86.898,4.52010321]
[1773518280394,9.27795247,86.936,86.898,4.52010321]
[1773518280594,10.349,86.944,86.898,4.52010321]
[1773518280794,9.27791298,86.943,86.898,4.52010321]
[1773518281001,9.27791298,86.942,86.898,4.52010321]
[1773518281194,9.27791298,86.941,86.898,4.52010321]
[1773518281399,9.27791298,86.94,86.898,4.52010321]
[1773518281698,9.27791298,86.939,86.898,4.52010321]
[1773518281898,9.27791298,86.938,86.898,4.52010321]
[1773518282099,9.27791298,86.937,86.898,4.52010321]
[1773518282299,9.27791298,86.936,86.898,4.52010321]
[1773518282499,10.349,86.944,86.898,4.52010321]
[1773518282703,9.27787995,86.943,86.898,4.52010321]
[1773518283002,9.27787995,86.942,86.898,4.52010321]
[1773518283199,9.27787995,86.941,86.898,4.52010321]
[1773518283395,9.27787995,86.94,86.898,4.52010321]
[1773518283596,9.27787995,86.939,86.898,4.52010321]
[1773518283901,9.27787995,86.938,86.898,4.52010321]
[1773518284101,9.27787995,86.937,86.898,4.52010321]
[1773518284293,10.349,86.944,86.898,4.52010321]
[1773518284496,9.27768758,86.943,86.898,4.52010321]
[1773518284698,9.27768758,86.942,86.898,4.52010321]
[1773518284901,9.27768758,86.941,86.898,4.52010321]
[1773518285098,9.27768758,86.94,86.898,4.52010321]
[1773518285301,9.27768758,86.939,86.898,4.52010321]
[1773518285500,9.27768758,86.938,86.898,4.52010321]
[1773518285699,9.27768758,86.937,86.898,4.52010321]
[1773518285900,10.349,86.944,86.898,4.52010321]
[1773518286098,9.27761641,86.943,86.898,4.52010321]
[1773518286309,9.27761641,86.942,86.898,4.52010321]
[1773518286607,9.27761641,86.941,86.898,4.52010321]
[1773518286908,9.27761641,86.94,86.898,4.52010321]
[1773518287109,9.27761641,86.939,86.898,4.52010321]
[1773518287309,9.27761641,86.938,86.898,4.52010321]
[1773518287510,9.27761641,86.937,86.898,4.52010321]
[1773518287704,9.27761641,86.936,86.898,4.52010321]
[1773518287905,10.349,86.944,86.898,4.52010321]
[1773518288105,9.27765195,86.943,86.898,4.52010321]
[1773518288303,9.27765195,86.942,86.898,4.52010321]
[1773518288507,9.27765195,86.941,86.898,4.52010321]
[1773518288707,9.27765195,86.94,86.898,4.52010321]
[1773518288910,9.27765195,86.939,86.898,4.52010321]
[1773518289110,9.27765195,86.938,86.898,4.52010321]
[1773518289311,9.27765195,86.937,86.898,4.52010321]
[1773518289512,9.27765195,86.936,86.898,4.52010321]
[1773518289812,10.349,86.944,86.898,4.52010321]
[1773518290113,9.27765616,86.943,86.898,4.52010321]
[1773518290411,9.27765616,86.942,86.898,4.52010321]
[1773518290612,9.27765616,86.941,86.898,4.52010321]
[1773518290814,9.2776609,86.94,86.898,4.52010321]
[1773518291005,9.2776609,86.939,86.898,4.52010321]
[1773518291207,9.2776609,86.938,86.898,4.52010321]
[1773518291511,9.2776609,86.937,86.898,4.52010321]
[1773518291706,9.2776609,86.936,86.898,4.52010321]
[1773518291904,10.349,86.944,86.898,4.52010321]
[1773518292106,9.2776674,86.943,86.898,4.52010321]
[1773518292303,9.2776674,86.942,86.898,4.52010321]
[1773518292511,9.2776674,86.941,86.898,4.52010321]
[1773518292808,9.2776674,86.94,86.898,4.52010321]
[1773518293008,9.2776674,86.939,86.898,4.52010321]
[1773518293208,9.2776674,86.938,86.898,4.52010321]
[1773518293508,9.2776674,86.937,86.898,4.52010321]
[1773518293708,9.2776674,86.936,86.898,4.52010321]
[1773518293911,10.349,86.944,86.898,4.52010321]
[1773518294111,9.2776852,86.943,86.898,4.52010321]
[1773518294310,9.2776852,86.942,86.898,4.52010321]
[1773518294511,9.2776852,86.941,86.898,4.52010321]
[1773518294711,9.2776852,86.94,86.898,4.52010321]
[1773518294913,9.2776852,86.939,86.898,4.52010321]
[1773518295112,9.2776852,86.938,86.898,4.52010321]
[1773518295314,9.2776852,86.937,86.898,4.52010321]
[1773518295513,9.2776852,86.936,86.898,4.52010321]
[1773518295813,10.349,86.944,86.898,4.52010321]
[1773518296014,9.27771199,86.943,86.898,4.52010321]
[1773518296214,9.27771199,86.942,86.898,4.52010321]
[1773518296513,9.27771199,86.941,86.898,4.52010321]
[1773518296707,9.27771199,86.94,86.898,4.52010321]
[1773518296912,9.27771199,86.939,86.898,4.52010321]
[1773518297106,9.27771199,86.938,86.898,4.52010321]
[1773518297305,9.27771199,86.937,86.898,4.52010321]
[1773518297508,9.27771199,86.936,86.898,4.52010321]
[1773518297714,10.349,86.944,86.898,4.52010321]
[1773518297914,9.27447552,86.943,86.898,4.52010321]
[1773518298113,9.27447552,86.942,86.898,4.52010321]
[1773518298315,9.27447552,86.941,86.898,4.52010321]
[1773518298510,9.27447552,86.94,86.898,4.52010321]
[1773518298816,9.27447552,86.939,86.898,4.52010321]
[1773518299016,9.27447552,86.938,86.898,4.52010321]
[1773518299208,9.27447552,86.937,86.898,4.52010321]
[1773518299404,9.27447552,86.936,86.898,4.52010321]
[1773518299609,10.349,86.944,86.898,4.52010321]
[1773518299808,9.27451045,86.943,86.898,4.52010321]
[1773518300015,9.27451045,86.942,86.898,4.52010321]
[1773518300218,9.27451045,86.941,86.898,4.52010321]
[1773518300419,9.27451045,86.94,86.898,4.52010321]
[1773518300622,9.27451045,86.939,86.898,4.52010321]
[1773518300821,9.27451045,86.938,86.898,4.52010321]
[1773518301019,9.27451045,86.937,86.898,4.52010321]
[1773518301220,9.27451045,86.936,86.898,4.52010321]
[1773518301422,10.349,86.944,86.898,4.52010321]
[1773518301622,9.27455349,86.943,86.898,4.52010321]
[1773518301921,9.27455349,86.942,86.898,4.52010321]
[1773518302121,9.27455349,86.941,86.898,4.52010321]
[1773518302321,9.27455349,86.94,86.898,4.52010321]
[1773518302522,9.27455349,86.939,86.898,4.52010321]
[1773518302721,9.27455349,86.938,86.898,4.52010321]
[1773518303023,9.27455349,86.937,86.898,4.52010321]
[1773518303320,9.27455349,86.936,86.898,4.52010321]
[1773518303620,10.349,86.944,86.898,4.52010321]
[1773518303821,9.27466284,86.943,86.898,4.52010321]
[1773518304016,9.27466284,86.942,86.898,4.52010321]
[1773518304223,9.27466284,86.941,86.898,4.52010321]
[1773518304526,9.27466284,86.94,86.898,4.52010321]
[1773518304714,9.27466284,86.939,86.898,4.52010321]
[1773518304918,9.27466284,86.938,86.898,4.52010321]
[1773518305124,9.27466284,86.937,86.898,4.52010321]
[1773518305323,9.27466284,86.936,86.898,4.52010321]
[1773518305519,10.349,86.944,86.898,4.52010321]
[1773518305821,9.27329785,86.943,86.898,4.52010321]
[1773518306017,9.27329785,86.942,86.898,4.52010321]
[1773518306211,9.27329785,86.941,86.898,4.52010321]
[1773518306423,9.27329785,86.94,86.898,4.52010321]
[1773518306619,9.27329785,86.939,86.898,4.52010321]
[1773518306814,9.27329785,86.938,86.898,4.52010321]
[1773518307012,9.27329785,86.937,86.898,4.52010321]
[1773518307215,9.27329785,86.936,86.898,4.52010321]
[1773518307413,10.349,86.944,86.898,4.52010321]
[1773518307623,9.27369339,86.943,86.898,4.52010321]
[1773518307817,9.27369339,86.942,86.898,4.52010321]
[1773518308018,9.27369339,86.941,86.898,4.52010321]
[1773518308223,9.27369339,86.94,86.898,4.52010321]
[1773518308423,9.27369339,86.939,86.898,4.52010321]
[1773518308722,9.27369339,86.938,86.898,4.52010321]
[1773518308924,9.27369339,86.937,86.898,4.52010321]
[1773518309220,9.27369339,86.936,86.898,4.52010321]
[1773518309422,10.349,86.944,86.898,4.52010321]
[1773518309623,9.27434419,86.943,86.898,4.52010321]
[1773518309823,9.27434419,86.942,86.898,4.52010321]
[1773518310023,9.27434419,86.941,86.898,4.52010321]
[1773518310227,9.27434419,86.94,86.898,4.52010321]
[1773518310421,9.27434419,86.939,86.898,4.52010321]
[1773518310621,9.27434419,86.938,86.898,4.52010321]
[1773518310821,10.349,86.944,86.898,4.52010321]
[1773518311026,9.27443628,86.943,86.898,4.52010321]
[1773518311223,9.27443628,86.942,86.898,4.52010321]
[1773518311526,9.27443628,86.941,86.898,4.52010321]
[1773518311721,9.27443628,86.94,86.898,4.52010321]
[1773518311920,9.27443628,86.939,86.898,4.52010321]
[1773518312224,9.27443628,86.938,86.898,4.52010321]
[1773518312422,10.349,86.944,86.898,4.52010321]
[1773518312625,9.2745532,86.943,86.898,4.52010321]
[1773518312826,9.2745532,86.942,86.898,4.52010321]
[1773518313129,9.2745532,86.941,86.898,4.52010321]
[1773518313331,9.2745532,86.94,86.898,4.52010321]
[1773518313629,9.2745532,86.939,86.898,4.52010321]
[1773518313828,9.2745532,86.938,86.898,4.52010321]
[1773518314029,10.349,86.944,86.898,4.52010321]
[1773518314229,9.27455217,86.943,86.898,4.52010321]
[1773518314429,9.27455217,86.942,86.898,4.52010321]
[1773518314628,9.27455217,86.941,86.898,4.52010321]
[1773518314930,9.27455217,86.94,86.898,4.52010321]
[1773518315122,9.27455217,86.939,86.898,4.52010321]
[1773518315429,9.27455217,86.938,86.898,4.52010321]
[1773518315629,10.349,86.944,86.898,4.52010321]
[1773518315823,9.27456142,86.943,86.898,4.52010321]
[1773518316126,9.27456142,86.942,86.898,4.52010321]
[1773518316327,9.27456142,86.941,86.898,4.52010321]
[1773518316530,9.27456142,86.94,86.898,4.52010321]
[1773518316730,9.27456142,86.939,86.898,4.52010321]
[1773518317029,9.27456142,86.938,86.898,4.52010321]
[1773518317229,10.349,86.944,86.898,4.52010321]
[1773518317525,9.27367244,86.943,86.898,4.52010321]
[1773518317728,9.27367244,86.942,86.898,4.52010321]
[1773518317927,9.27367244,86.941,86.898,4.52010321]
[1773518318129,9.27367244,86.94,86.898,4.52010321]
[1773518318430,9.27367244,86.939,86.898,4.52010321]
[1773518318728,9.27367244,86.938,86.898,4.52010321]
[1773518318931,10.349,86.944,86.898,4.52010321]
[1773518319130,9.27367036,86.943,86.898,4.52010321]
[1773518319326,9.27367036,86.942,86.898,4.52010321]
[1773518319531,9.27367036,86.941,86.898,4.52010321]
[1773518319732,9.27367036,86.94,86.898,4.52010321]
[1773518319931,9.27367036,86.939,86.898,4.52010321]
[1773518320131,9.27367036,86.938,86.898,4.52010321]
[1773518320331,9.27367036,86.937,86.898,4.52010321]
[1773518320531,9.27367036,86.936,86.898,4.52010321]
[1773518320732,10.349,86.944,86.898,4.52010321]
[1773518320932,9.2736812,86.943,86.898,4.52010321]
[1773518321133,9.2736812,86.942,86.898,4.52010321]
[1773518321432,9.2736812,86.941,86.898,4.52010321]
[1773518321733,9.2736812,86.94,86.898,4.52010321]
[1773518322031,9.2736812,86.939,86.898,4.52010321]
[1773518322232,9.2736812,86.938,86.898,4.52010321]
[1773518322432,9.2736812,86.937,86.898,4.52010321]
[1773518322626,9.2736812,86.936,86.898,4.52010321]
[1773518322829,10.348,86.953,86.903,4.47662799]
[1773518323034,9.27479712,86.952,86.903,4.47662799]
[1773518323234,9.27479712,86.951,86.903,4.47662799]
[1773518323533,9.27479712,86.95,86.903,4.47662799]
[1773518323732,9.27479712,86.949,86.903,4.47662799]
[1773518323935,9.27479712,86.948,86.903,4.47662799]
[1773518324125,10.348,86.953,86.903,4.47662799]
[1773518324331,9.26878272,86.952,86.903,4.47662799]
[1773518324531,9.26878272,86.951,86.903,4.47662799]
[1773518324733,9.26878272,86.95,86.903,4.47662799]
[1773518324936,9.26878272,86.949,86.903,4.47662799]
[1773518325136,9.26878272,86.948,86.903,4.47662799]
[1773518325336,9.26878272,86.947,86.903,4.47662799]
[1773518325537,10.348,86.953,86.903,4.47662799]
[1773518325738,9.26761609,86.952,86.903,4.47662799]
[1773518325942,9.26761609,86.951,86.903,4.47662799]
[1773518326130,9.26761609,86.95,86.903,4.47662799]
[1773518326329,9.26761609,86.949,86.903,4.47662799]
[1773518326632,9.26761609,86.948,86.903,4.47662799]
[1773518326839,10.348,86.953,86.903,4.47662799]
[1773518327038,9.26663234,86.952,86.903,4.47662799]
[1773518327239,9.26663234,86.951,86.903,4.47662799]
[1773518327539,9.26663234,86.95,86.903,4.47662799]
[1773518327735,9.26663234,86.949,86.903,4.47662799]
[1773518327935,9.26663234,86.948,86.903,4.47662799]
[1773518328130,10.348,86.953,86.903,4.47662799]
[1773518328438,9.26509097,86.952,86.903,4.47662799]
[1773518328739,9.26509097,86.951,86.903,4.47662799]
[1773518328932,9.26509097,86.95,86.903,4.47662799]
[1773518329133,9.26509097,86.949,86.903,4.47662799]
[1773518329338,10.348,86.953,86.903,4.47662799]
[1773518329538,9.26444234,86.952,86.903,4.47662799]
[1773518329739,9.26444234,86.951,86.903,4.47662799]
[1773518329933,9.26444234,86.95,86.903,4.47662799]
[1773518330135,9.26444234,86.949,86.903,4.47662799]
[1773518330336,10.348,86.953,86.903,4.47662799]
[1773518330631,9.26387631,86.952,86.903,4.47662799]
[1773518330831,9.26387631,86.951,86.903,4.47662799]
[1773518331036,9.26387631,86.95,86.903,4.47662799]
[1773518331234,9.26387631,86.949,86.903,4.47662799]
[1773518331436,10.348,86.953,86.903,4.47662799]
[1773518331640,9.26335412,86.952,86.903,4.47662799]
[1773518331840,9.26335412,86.951,86.903,4.47662799]
[1773518332040,9.26335412,86.95,86.903,4.47662799]
[1773518332343,10.347,86.962,86.905,4.47824242]
[1773518332537,9.26304205,86.961,86.905,4.47824242]
[1773518332739,9.26304205,86.96,86.905,4.47824242]
[1773518332938,9.26304205,86.959,86.905,4.47824242]
[1773518333140,9.26304205,86.958,86.905,4.47824242]
[1773518333444,9.26304205,86.957,86.905,4.47824242]
[1773518333645,9.26304205,86.956,86.907,4.48543562]
[1773518333845,9.26304205,86.955,86.907,4.48543562]
[1773518334146,9.26304205,86.954,86.907,4.48543562]
[1773518334345,9.26304205,86.953,86.907,4.48543562]
[1773518334547,9.26304205,86.952,86.907,4.48543562]
[1773518334742,9.26304205,86.951,86.907,4.48543562]
[1773518334943,10.347,86.962,86.907,4.48543562]
[1773518335144,10.348,86.96,86.907,4.48543562]
[1773518335350,9.26104822,86.959,86.907,4.48543562]
[1773518335544,9.26104822,86.958,86.907,4.48543562]
[1773518335848,9.26104822,86.957,86.907,4.48543562]
[1773518336049,9.26104822,86.956,86.907,4.48543562]
[1773518336250,9.26104822,86.955,86.907,4.48543562]
[1773518336452,9.26104822,86.954,86.907,4.48543562]
[1773518336748,9.26104822,86.953,86.907,4.48543562]
[1773518336949,9.26104822,86.952,86.907,4.48543562]
[1773518337145,13.47372442,86.96,86.907,4.48543562]
[1773518337349,9.26062886,86.959,86.907,4.48543562]
[1773518337541,9.26062886,86.958,86.907,4.48543562]
[1773518337742,9.26062886,86.957,86.907,4.48543562]
[1773518337948,13.47372442,86.96,86.907,4.48543562]
[1773518337949,9.26062886,86.956,86.907,4.48543562]
[1773518338145,9.26062886,86.955,86.907,4.48543562]
[1773518338344,9.26062886,86.954,86.907,4.48543562]
[1773518338541,9.26062886,86.953,86.907,4.48543562]
[1773518338741,9.26062886,86.952,86.907,4.48543562]
[1773518338941,13.47372442,86.96,86.907,4.48543562]
[1773518339148,9.26028625,86.959,86.907,4.48543562]
[1773518339350,9.26028625,86.958,86.907,4.48543562]
[1773518339544,9.26028625,86.957,86.907,4.48543562]
[1773518339745,9.26028625,86.956,86.909,4.48356847]
[1773518339949,13.47372442,86.96,86.909,4.48356847]
[1773518340154,9.26028774,86.959,86.909,4.48356847]
[1773518340344,47.42,86.966,86.914,4.48352582]
[1773518340548,9.26010162,86.965,86.921,4.48352582]
[1773518340752,9.26010162,86.964,86.921,4.48352582]
[1773518340952,9.26010162,86.963,86.921,4.48352582]
[1773518341252,10.347,86.969,86.921,4.48352582]
[1773518341452,9.25801984,86.968,86.921,4.48352582]
[1773518341655,9.25801984,86.967,86.921,4.48352582]
[1773518341848,10.347,86.969,86.921,4.48352582]
[1773518342046,9.25742722,86.968,86.921,4.48352582]
[1773518342253,10.347,86.969,86.921,4.48352582]
[1773518342556,9.25491559,86.968,86.921,4.48352582]
[1773518342853,10.347,86.969,86.921,4.48352582]
[1773518343056,9.25491559,86.968,86.921,4.48352582]
[1773518343248,10.347,86.969,86.921,4.48352582]
[1773518361268,184.78844671,86.97,86.925,4.484489]
[1773518361766,184.78844671,86.97,86.931,4.48448079]
[1773518363667,184.78844671,86.97,86.938,14.8388501]
[1773518365775,47.48,86.979,86.938,14.8388501]
[1773518369673,10.344,86.988,86.938,14.8388501]
[1773518369869,3.12572442,86.98,86.938,14.8388501]
[1773518373581,3.12314872,86.98,86.938,14.8388501]
[1773518376583,3.12314872,86.98,86.939,4.48480259]
[1773518386887,48.52,86.988,86.942,4.49142179]
[1773518387493,3.12314872,86.99,86.942,4.49142179]
[1773518387689,9.25296104,86.989,86.942,4.49142179]
[1773518387890,10.343,86.996,86.942,4.49142179]
[1773518388187,9.25296104,86.995,86.942,4.49142179]
[1773518388394,9.25296104,86.994,86.942,4.49142179]
[1773518388589,9.25296104,86.993,86.945,4.49196752]
[1773518388790,9.25296104,86.992,86.945,4.49196752]
[1773518388988,9.25296104,86.991,86.945,4.49196752]
[1773518389188,9.25296104,86.99,86.945,4.49196752]
[1773518389390,10.343,86.996,86.945,4.49196752]
[1773518389591,9.2525615,86.995,86.947,4.49199165]
[1773518389793,9.2525615,86.994,86.947,4.49199165]
[1773518390090,9.2525615,86.993,86.947,4.49199165]
[1773518390292,9.2525615,86.992,86.947,4.49199165]
[1773518390491,9.2525615,86.991,86.947,4.49199165]
[1773518390690,9.2525615,86.99,86.947,4.49199165]
[1773518390893,10.343,86.996,86.947,4.49199165]
[1773518391086,9.25246872,86.995,86.947,4.49199165]
[1773518391287,9.25246872,86.994,86.947,4.49199165]
[1773518391488,9.25246872,86.993,86.947,4.49199165]
[1773518391689,9.25246872,86.992,86.947,4.49199165]
[1773518391890,9.25246872,86.991,86.947,4.49199165]
[1773518392092,9.25246872,86.99,86.947,4.49199165]
[1773518392293,10.343,86.996,86.947,4.49199165]
[1773518392492,9.25254612,86.995,86.947,4.49199165]
[1773518392693,9.25254612,86.994,86.947,4.49199165]
[1773518392893,9.25254612,86.993,86.947,4.49199165]
[1773518393089,9.25254612,86.992,86.947,4.49199165]
[1773518393289,9.25254612,86.991,86.947,4.49199165]
[1773518393584,9.25254612,86.99,86.947,4.49199165]
[1773518393790,10.343,86.996,86.947,4.49199165]
[1773518393991,9.25271644,86.995,86.947,4.49199165]
[1773518394289,9.25271644,86.994,86.947,4.49199165]
[1773518394484,9.25271644,86.993,86.947,4.49199165]
[1773518394684,9.25271644,86.992,86.947,4.49199165]
[1773518394893,9.25271644,86.991,86.947,4.49199165]
[1773518395094,9.25271644,86.99,86.947,4.49199165]
[1773518395295,10.343,86.996,86.947,4.49199165]
[1773518395496,9.24739431,86.995,86.947,4.49199165]
[1773518395696,9.24739431,86.994,86.947,4.49199165]
[1773518395897,9.24739431,86.993,86.947,4.49199165]
[1773518396195,9.24739431,86.992,86.947,4.49199165]
[1773518396391,9.24739431,86.991,86.947,4.49199165]
[1773518396695,9.24739431,86.99,86.947,4.49199165]
[1773518396995,9.24739431,86.989,86.947,4.49199165]
[1773518397197,10.343,86.996,86.947,4.49199165]
[1773518397495,9.24838489,86.995,86.947,4.49199165]
[1773518397696,9.24838489,86.994,86.947,4.49199165]
[1773518397996,9.24838489,86.993,86.948,14.83075403]
[1773518398197,9.24838489,86.992,86.948,14.83075403]
[1773518398498,10.343,86.996,86.948,14.83075403]
[1773518398499,9.24838489,86.991,86.949,4.48172856]
[1773518398800,9.24838489,86.99,86.949,4.48172856]
[1773518398998,10.343,86.996,86.949,4.48172856]
[1773518398999,9.24838489,86.989,86.949,4.48172856]
[1773518399200,10.343,86.996,86.949,4.48172856]
[1773518399403,9.24981445,86.995,86.949,4.48172856]
[1773518399600,9.24981445,86.994,86.949,4.48172856]
[1773518399900,9.24981445,86.993,86.949,4.48172856]
[1773518400100,9.24981445,86.992,86.949,4.48172856]
[1773518400301,9.24981445,86.991,86.949,4.48172856]
[1773518400501,3.12314872,87.0,86.952,4.47744372]
[1773518400702,9.25054385,86.999,86.952,4.47744372]
[1773518400896,9.25054385,86.998,86.952,4.47744372]
[1773518401099,9.25054385,86.997,86.952,4.47744372]
[1773518401401,9.25054385,86.996,86.952,4.47744372]
[1773518401605,9.25054385,86.995,86.957,4.4774407]
[1773518401897,9.25054385,86.994,86.957,4.4774407]
[1773518402097,9.25054385,86.993,86.957,4.4774407]
[1773518402296,9.25054385,86.992,86.957,4.4774407]
[1773518402603,3.12314872,87.0,86.957,4.4774407]
[1773518402896,9.25205605,86.999,86.957,4.4774407]
[1773518403101,9.25205605,86.998,86.957,4.4774407]
[1773518403301,9.25205605,86.997,86.957,4.4774407]
[1773518403603,10.341,87.013,86.959,4.47527044]
[1773518403800,18.47640269,87.012,86.959,4.47527044]
[1773518404100,18.47640269,87.011,86.959,4.47527044]
[1773518404297,12.37550788,87.01,86.959,4.47527044]
[1773518404510,9.25235916,87.009,86.959,4.47527044]
[1773518404702,9.25235916,87.008,86.959,4.47527044]
[1773518404902,9.25235916,87.007,86.959,4.47527044]
[1773518405101,9.25235916,87.006,86.959,4.47527044]
[1773518405403,3.12314872,87.01,86.959,4.47527044]
[1773518405404,9.25235916,87.005,86.959,4.47527044]
[1773518405703,9.25235916,87.004,86.959,4.47527044]
[1773518405906,9.25235916,87.003,86.959,4.47527044]
[1773518406106,9.25235916,87.002,86.959,4.47527044]
[1773518406306,9.25235916,87.001,86.959,4.47527044]
[1773518406609,9.25235916,87.0,86.959,4.47527044]
[1773518406803,3.12314872,87.01,86.959,4.47527044]
[1773518407004,9.25291307,87.009,86.959,4.47527044]
[1773518407204,9.25291307,87.008,86.959,4.47527044]
[1773518407400,9.25291307,87.007,86.959,4.47527044]
[1773518407606,9.25291307,87.006,86.959,4.47527044]
[1773518407806,9.25291307,87.005,86.959,4.47527044]
[1773518408009,9.25291307,87.004,86.959,4.47527044]
[1773518408308,3.12314872,87.01,86.959,4.47527044]
[1773518408508,9.24992518,87.009,86.959,4.47527044]
[1773518408805,9.24992518,87.008,86.959,4.47527044]
[1773518409005,9.24992518,87.007,86.959,4.47527044]